fUSD/lending_fUSD_20250201
["ID","MTS","AMOUNT","RATE_DAILY","PERIOD"]
[351180836,1738398651150,-500.0,0.0001777,2]
[351180837,1738398651159,-1130.53,0.0001777,2]
[351180838,1738398651169,-1298.24,0.0001777,2]
[351180839,1738398651177,-500.0,0.0001777,2]
[351180840,1738398651187,-500.0,0.0001777,2]
[351180841,1738398651197,-500.0,0.0001777,2]
[351180842,1738398651208,-986.74,0.0001777,2]
[351180843,1738398651218,-500.0,0.0001777,2]
[351180844,1738398651227,-500.0,0.0001777,2]
[351180845,1738398651237,-871.54,0.0001777,2]
[351180846,1738398651248,-512.16,0.0001777,2]
[351180847,1738398651257,-524.80008742,0.00017772,2]
[351180848,1738398651267,-500.0,0.00017772,2]
[351180849,1738398651277,-500.0,0.00017772,2]
[351180850,1738398651287,-500.0,0.00017772,2]
[351180851,1738398651296,-500.0,0.00017772,2]
[351180852,1738398651305,-500.0,0.00017772,2]
[351180853,1738398651314,-500.0,0.00017772,2]
[351180854,1738398651324,-500.0,0.00017772,2]
[351180855,1738398651333,-500.0,0.00017772,2]
[351180856,1738398651342,-500.0,0.00017772,2]
[351180857,1738398651351,-151.0,0.00017772,2]
[351180858,1738398651360,-151.0,0.00017772,2]
[351180859,1738398651370,-151.0,0.00017772,2]
[351180860,1738398651379,-151.459724,0.00017772,2]
[351180861,1738398651388,-151.459724,0.00017772,2]
[351180862,1738398651397,-382.10591967,0.00017781,2]
[351180863,1738398651406,-150.0,0.00017781,2]
[351180864,1738398651415,-150.0,0.00017786,2]
[351180865,1738398651424,-150.0,0.00017789,2]
[351180866,1738398651434,-150.0,0.0001779,2]
[351180867,1738398651443,-150.0,0.00017791,2]
[351180868,1738398651453,-11107.18697937,0.00017798,2]
[351180869,1738398651463,-3537991.55994136,0.00017798,2]
[351180870,1738398651735,-51071.80594418,0.00017798,2]
[351180871,1738398651763,-305.25431088,0.00016575,2]
[351180872,1738398651862,-150.0,0.00015856,2]
[351180873,1738398651872,-194.74568912,0.00016575,2]
[351180874,1738398651882,-150.0,0.00016902,2]
[351180875,1738398651891,-148.76992437,0.00017798,2]
[351180876,1738398652517,-283.78119716,9.999e-05,2]
[351180877,1738398653179,-216.21880284,9.999e-05,2]
[351180878,1738398653189,-348.99472919,9.999e-05,2]
[351180879,1738398653203,-177.63270507,0.000148,2]
[351180880,1738398653212,-150.0,0.00015774,2]
[351180881,1738398653221,-150.0,0.0001596,2]
[351180882,1738398653230,-150.0,0.00016222,2]
[351180883,1738398653239,-583.97,0.00016438,2]
[351180884,1738398653248,-500.0,0.00016438,2]
[351180885,1738398653258,-509.21116118,0.00016438,2]
[351180886,1738398653267,-563.10720974,0.00016438,2]
[351180887,1738398653277,-500.0,0.00016438,2]
[351180888,1738398653287,-150.0,0.0001647,2]
[351180889,1738398653296,-500.0,0.00016575,2]
[351180890,1738398653306,-150.0,0.00016698,2]
[351180891,1738398653316,-500.0,0.00016712,2]
[351180892,1738398653325,-500.0,0.00016712,2]
[351180893,1738398653334,-150.0,0.00016754,2]
[351180894,1738398653344,-150.0,0.00016797,2]
[351180895,1738398653353,-500.0,0.00016849,2]
[351180896,1738398653362,-500.0,0.00016849,2]
[351180897,1738398653372,-500.0,0.00016986,2]
[351180898,1738398653381,-500.0,0.00016986,2]
[351180899,1738398653391,-500.0,0.00017123,2]
[351180900,1738398653400,-500.0,0.00017123,2]
[351180901,1738398653409,-150.0,0.00017201,2]
[351180902,1738398653419,-150.0,0.00017211,2]
[351180903,1738398653428,-150.0,0.00017231,2]
[351180904,1738398653438,-500.0,0.0001726,2]
[351180905,1738398653448,-500.0,0.0001726,2]
[351180906,1738398653457,-150.0,0.00017292,2]
[351180907,1738398653466,-150.0,0.00017303,2]
[351180908,1738398653476,-150.0,0.00017303,2]
[351180909,1738398653486,-500.0,0.00017397,2]
[351180910,1738398653495,-500.0,0.00017397,2]
[351180911,1738398653504,-150.0,0.00017419,2]
[351180912,1738398653513,-150.0,0.00017476,2]
[351180913,1738398653523,-150.0,0.00017493,2]
[351180914,1738398653533,-500.0,0.00017531,2]
[351180915,1738398653542,-500.0,0.00017531,2]
[351180916,1738398653552,-500.0,0.00017534,2]
[351180917,1738398653562,-500.0,0.00017534,2]
[351180918,1738398653571,-150.0,0.00017582,2]
[351180919,1738398653582,-500.0,0.00017668,2]
[351180920,1738398653591,-500.0,0.00017671,2]
[351180921,1738398653601,-500.0,0.00017671,2]
[351180922,1738398653613,-150.0,0.0001768,2]
[351180923,1738398653623,-150.0,0.00017685,2]
[351180924,1738398653633,-150.0,0.00017706,2]
[351180925,1738398653642,-150.0,0.00017708,2]
[351180926,1738398653653,-150.0,0.00017717,2]
[351180927,1738398653663,-150.0,0.00017726,2]
[351180928,1738398653672,-150.0,0.00017727,2]
[351180929,1738398653682,-150.0,0.00017741,2]
[351180930,1738398653692,-150.0,0.00017747,2]
[351180931,1738398653702,-150.0,0.00017749,2]
[351180932,1738398653712,-150.0,0.00017751,2]
[351180933,1738398653723,-150.0,0.00017757,2]
[351180934,1738398653732,-150.0,0.00017762,2]
[351180935,1738398653743,-150.0,0.0001777,2]
[351180936,1738398653752,-150.0,0.00017775,2]
[351180937,1738398653761,-150.0,0.00017781,2]
[351180938,1738398653781,-150.0,0.00017797,2]
[351180939,1738398653793,-383878.8152351,0.00017798,2]
[351180940,1738398654571,-106.68593688,0.00016438,2]
[351180941,1738398654590,-279.741,0.00016438,2]
[351180942,1738398654600,-120.06272076,0.00016438,2]
[351180943,1738398654609,-594.13252085,0.00016438,2]
[351180944,1738398654618,-332.36865629,0.00016438,2]
[351180960,1738399398450,-151.84,0.00010137,2]
[351180987,1738399832615,-669.83,0.00011728,2]
[351180988,1738399832625,-150.0,0.00012099,2]
[351180989,1738399832634,-150.0,0.00012099,2]
[351180990,1738399832644,-150.0,0.000129,2]
[351180991,1738399832653,-550.0,0.00013,2]
[351180992,1738399832663,-524.69702,0.00013,2]
[351180993,1738399832672,-150.0,0.00013507,2]
[351180994,1738399832684,-250.0,0.00013521,2]
[351180995,1738399832694,-150.0,0.0001353,2]
[351180996,1738399832704,-449.97,0.000136,2]
[351180997,1738399832714,-468.09,0.00013654,2]
[351180998,1738399832725,-150.0,0.00013679,2]
[351180999,1738399832735,-174.37,0.00013699,2]
[351181000,1738399832745,-150.0,0.00013762,2]
[351181001,1738399832755,-150.0,0.00013868,2]
[351181002,1738399832765,-669.83,0.00013992,2]
[351181003,1738399832775,-150.0,0.00014019,2]
[351181004,1738399832785,-1000.0,0.00014044,2]
[351181005,1738399832795,-4381.26,0.00014111,2]
[351181006,1738399832806,-500.0,0.00014132,2]
[351181007,1738399832815,-150.0,0.00014261,2]
[351181008,1738399832824,-29295.12939038,0.00014297,2]
[351181009,1738399832836,-1075.63162863,0.00014297,2]
[351181010,1738399833871,-283.51578245,0.00014297,2]
[351181011,1738399833976,-310.529994,0.00014297,2]
[351181095,1738399838321,-295.68818258,0.00014297,2]
[351181096,1738399838332,-426.44833375,0.00014297,2]
[351181097,1738399838343,-4533.32130155,0.00014297,2]
[351181098,1738399838354,-276.92236239,0.00014297,2]
[351181099,1738399838365,-641.07447496,0.00014297,2]
[351181100,1738399838377,-9480.01913788,0.00014297,2]
[351181101,1738399838423,-17976.99941143,0.00014297,2]
[351181102,1738399838432,-174.37,0.00014384,2]
[351181103,1738399838442,-150.0,0.00014442,2]
[351181104,1738399838453,-150.0,0.00014507,2]
[351181105,1738399838464,-150.0,0.0001455,2]
[351181106,1738399838473,-150.0,0.00014621,2]
[351181107,1738399838484,-150.0,0.00014653,2]
[351181108,1738399838493,-150.0,0.00014784,2]
[351181109,1738399838503,-600.0,0.00015,2]
[351181110,1738399838513,-174.37,0.00015068,2]
[351181111,1738399838523,-21.66058857,0.0001507,2]
[351181112,1738399838534,-128.33941143,0.0001507,2]
[351181113,1738399838544,-150.0,0.00015219,2]
[351181114,1738399838554,-449.97,0.000153,2]
[351181115,1738399838566,-150.0,0.00015343,2]
[351181116,1738399838576,-150.0,0.0001547,2]
[351181117,1738399838586,-174.37,0.00015753,2]
[351181118,1738399838595,-799.50297865,0.000158,2]
[351181119,1738399838607,-200.49702135,0.000158,2]
[351181120,1738399838616,-1405.87757474,0.000159,2]
[351181121,1738399838626,-150.0,0.00015923,2]
[351181122,1738399838635,-2949.49871658,0.00016,2]
[351181123,1738399838653,-25861.50128342,0.00016,2]
[351181124,1738399838663,-53915.92020616,0.00016,2]
[351181125,1738399838672,-1405.87757458,0.00016003,2]
[351181126,1738399838683,-150.0,0.00016073,2]
[351181127,1738399838694,-1405.87757458,0.00016107,2]
[351181129,1738399838703,-1405.87757458,0.0001621,2]
[351181131,1738399838713,-669.83,0.00016255,2]
[351181132,1738399838725,-150.0,0.00016299,2]
[351181133,1738399838734,-1405.87757458,0.00016314,2]
[351181134,1738399838744,-368.77,0.00016315,2]
[351181135,1738399838753,-13194.18316266,0.00016338,2]
[351181136,1738399838763,-150.0,0.00016378,2]
[351181137,1738399838772,-1405.87757458,0.00016417,2]
[351181138,1738399838782,-465.34,0.00016428,2]
[351181139,1738399838791,-412.9332171,0.00016437,2]
[351181140,1738399838800,-604.89,0.00016438,7]
[351181141,1738399838811,-500.0,0.00016438,2]
[351181142,1738399838821,-603.44,0.00016438,2]
[351181143,1738399838830,-616.2,0.00016438,2]
[351181144,1738399838840,-500.0,0.00016438,2]
[351181145,1738399839027,-500.0,0.00016438,2]
[351181146,1738399839037,-500.0,0.00016438,2]
[351181147,1738399839046,-500.0,0.00016438,2]
[351181148,1738399839056,-500.0,0.00016438,2]
[351181149,1738399839069,-500.0,0.00016438,2]
[351181150,1738399839078,-500.0,0.00016438,2]
[351181151,1738399839088,-500.0,0.00016438,2]
[351181152,1738399839097,-500.0,0.00016438,2]
[351181153,1738399839107,-500.0,0.00016438,2]
[351181154,1738399839116,-500.0,0.00016438,2]
[351181155,1738399839126,-614.05,0.00016438,2]
[351181156,1738399839136,-500.0,0.00016438,2]
[351181157,1738399839145,-500.0,0.00016438,2]
[351181158,1738399839154,-434.14563566,0.00016438,2]
[351181159,1738399839164,-502.8969672,0.00016438,2]
[351181160,1738399839173,-500.0,0.00016438,2]
[351181161,1738399839183,-500.0,0.00016438,2]
[351181162,1738399839192,-503.9,0.00016438,2]
[351181163,1738399839202,-500.0,0.00016438,2]
[351181164,1738399839213,-500.0,0.00016438,2]
[351181165,1738399839222,-500.0,0.00016438,2]
[351181166,1738399839232,-500.0,0.00016438,2]
[351181167,1738399839242,-632.76,0.00016438,2]
[351181168,1738399839251,-500.0,0.00016438,2]
[351181169,1738399839260,-500.0,0.00016438,2]
[351181170,1738399839270,-561.64,0.00016438,2]
[351181171,1738399839280,-500.0,0.00016438,2]
[351181172,1738399839289,-500.0,0.00016438,2]
[351181173,1738399839298,-616.07,0.00016438,2]
[351181174,1738399839308,-500.0,0.00016438,2]
[351181175,1738399839319,-602.64,0.00016438,2]
[351181176,1738399839329,-500.0,0.00016438,2]
[351181177,1738399839339,-500.0,0.00016438,2]
[351181178,1738399839348,-500.0,0.00016438,2]
[351181179,1738399839357,-500.0,0.00016438,2]
[351181180,1738399839367,-500.0,0.00016438,2]
[351181181,1738399839376,-500.0,0.00016438,2]
[351181182,1738399839386,-192.96652673,0.00016438,2]
[351181183,1738399839395,-231.06408965,0.00016438,2]
[351181184,1738399839404,-548.59,0.00016438,2]
[351181185,1738399839414,-500.0,0.00016438,2]
[351181186,1738399839423,-500.0,0.00016438,2]
[351181187,1738399839433,-500.0,0.00016438,2]
[351181188,1738399839441,-500.0,0.00016438,2]
[351181189,1738399839451,-500.0,0.00016438,2]
[351181190,1738399839460,-500.0,0.00016438,2]
[351181191,1738399839470,-500.0,0.00016438,2]
[351181192,1738399839479,-500.0,0.00016438,2]
[351181193,1738399839488,-500.0,0.00016438,2]
[351181194,1738399839498,-511.54831722,0.00016438,2]
[351181195,1738399839507,-500.0,0.00016438,2]
[351181196,1738399839517,-500.0,0.00016438,2]
[351181197,1738399839527,-509.97596808,0.00016438,2]
[351181198,1738399839536,-500.0,0.00016438,2]
[351181199,1738399839546,-500.0,0.00016438,2]
[351181200,1738399839555,-500.0,0.00016438,2]
[351181201,1738399839567,-500.0,0.00016438,2]
[351181202,1738399839576,-500.0,0.00016438,2]
[351181203,1738399839586,-500.0,0.00016438,2]
[351181204,1738399839595,-500.0,0.00016438,2]
[351181205,1738399839604,-500.0,0.00016438,2]
[351181206,1738399839614,-500.0,0.00016438,2]
[351181207,1738399839624,-500.0,0.00016438,2]
[351181208,1738399839633,-500.0,0.00016438,2]
[351181209,1738399839643,-500.0,0.00016438,2]
[351181210,1738399839653,-500.0,0.00016438,2]
[351181211,1738399839672,-500.0,0.00016438,2]
[351181212,1738399839684,-500.0,0.00016438,2]
[351181213,1738399839696,-500.0,0.00016438,2]
[351181214,1738399839706,-500.0,0.00016438,2]
[351181215,1738399839715,-500.0,0.00016438,2]
[351181216,1738399839726,-500.0,0.00016438,2]
[351181217,1738399839736,-500.0,0.00016438,2]
[351181218,1738399839745,-500.0,0.00016438,2]
[351181219,1738399839755,-500.0,0.00016438,2]
[351181220,1738399839766,-500.0,0.00016438,2]
[351181221,1738399839775,-500.0,0.00016438,2]
[351181222,1738399839784,-507.9679695,0.00016438,2]
[351181223,1738399839793,-500.0,0.00016438,2]
[351181224,1738399839803,-500.0,0.00016438,2]
[351181225,1738399839813,-500.0,0.00016438,2]
[351181226,1738399839823,-500.0,0.00016438,2]
[351181227,1738399839832,-500.0,0.00016438,2]
[351181228,1738399839842,-500.0,0.00016438,2]
[351181229,1738399839853,-500.0,0.00016438,2]
[351181230,1738399839863,-500.0,0.00016438,2]
[351181231,1738399839872,-508.14560294,0.00016438,2]
[351181232,1738399839881,-500.0,0.00016438,2]
[351181233,1738399839891,-500.0,0.00016438,2]
[351181234,1738399839901,-500.0,0.00016438,2]
[351181235,1738399839910,-528.19,0.00016438,2]
[351181236,1738399839920,-500.0,0.00016438,2]
[351181237,1738399839929,-500.0,0.00016438,2]
[351181238,1738399839939,-500.0,0.00016438,2]
[351181239,1738399839948,-500.0,0.00016438,2]
[351181240,1738399839958,-500.0,0.00016438,2]
[351181241,1738399839968,-500.0,0.00016438,2]
[351181242,1738399839978,-632.81,0.00016438,2]
[351181243,1738399839988,-347.41,0.00016438,2]
[351181244,1738399839997,-500.0,0.00016438,2]
[351181245,1738399840006,-500.0,0.00016438,2]
[351181246,1738399840016,-500.0,0.00016438,2]
[351181247,1738399840026,-500.0,0.00016438,2]
[351181248,1738399840035,-536.26,0.00016438,2]
[351181249,1738399840044,-500.0,0.00016438,2]
[351181250,1738399840054,-507.67701823,0.00016438,2]
[351181251,1738399840066,-500.0,0.00016438,2]
[351181252,1738399840075,-500.0,0.00016438,2]
[351181253,1738399840085,-500.0,0.00016438,2]
[351181254,1738399840095,-500.0,0.00016438,2]
[351181256,1738399840104,-500.0,0.00016438,2]
[351181258,1738399840113,-500.0,0.00016438,2]
[351181259,1738399840123,-500.0,0.00016438,2]
[351181261,1738399840133,-500.0,0.00016438,2]
[351181263,1738399840142,-500.0,0.00016438,2]
[351181265,1738399840152,-500.0,0.00016438,2]
[351181267,1738399840162,-500.0,0.00016438,2]
[351181268,1738399840172,-500.0,0.00016438,2]
[351181269,1738399840182,-500.0,0.00016438,2]
[351181270,1738399840191,-525.68,0.00016438,2]
[351181271,1738399840200,-500.0,0.00016438,2]
[351181272,1738399840210,-500.0,0.00016438,2]
[351181273,1738399840219,-761.75,0.00016438,2]
[351181274,1738399840229,-500.0,0.00016438,2]
[351181275,1738399840239,-500.0,0.00016438,2]
[351181276,1738399840248,-620.94,0.00016438,2]
[351181277,1738399840258,-500.0,0.00016438,2]
[351181279,1738399840267,-500.0,0.00016438,2]
[351181280,1738399840277,-500.0,0.00016438,2]
[351181281,1738399840286,-500.0,0.00016438,2]
[351181282,1738399840296,-500.0,0.00016438,2]
[351181283,1738399840305,-688.17,0.00016438,2]
[351181284,1738399840316,-520.63,0.00016438,2]
[351181286,1738399840327,-500.0,0.00016438,2]
[351181287,1738399840340,-500.0,0.00016438,2]
[351181289,1738399840350,-546.29,0.00016438,2]
[351181290,1738399840359,-500.0,0.00016438,2]
[351181291,1738399840369,-500.0,0.00016438,2]
[351181292,1738399840378,-500.0,0.00016438,2]
[351181293,1738399840387,-526.82531891,0.00016438,2]
[351181294,1738399840397,-500.0,0.00016438,2]
[351181295,1738399840406,-586.4085383,0.00016438,2]
[351181296,1738399840415,-500.0,0.00016438,2]
[351181297,1738399840425,-500.0,0.00016438,2]
[351181298,1738399840434,-500.0,0.00016438,2]
[351181299,1738399840444,-414.03125663,0.00016438,2]
[351181300,1738399840453,-500.0,0.00016438,2]
[351181301,1738399840462,-507.39084593,0.00016438,2]
[351181302,1738399840472,-500.0,0.00016438,2]
[351181303,1738399840481,-500.0,0.00016438,2]
[351181304,1738399840491,-500.0,0.00016438,2]
[351181305,1738399840500,-500.0,0.00016438,2]
[351181306,1738399840509,-500.0,0.00016438,2]
[351181307,1738399840519,-500.0,0.00016438,2]
[351181308,1738399840528,-500.0,0.00016438,2]
[351181309,1738399840537,-500.0,0.00016438,2]
[351181310,1738399840546,-511.2162337,0.00016438,2]
[351181311,1738399840555,-500.0,0.00016438,2]
[351181312,1738399840566,-618.04,0.00016438,2]
[351181313,1738399840575,-500.0,0.00016438,2]
[351181314,1738399840585,-524.80008742,0.00016438,2]
[351181315,1738399840595,-706.17,0.00016438,2]
[351181316,1738399840605,-500.0,0.00016438,2]
[351181317,1738399840614,-500.0,0.00016438,2]
[351181318,1738399840624,-500.0,0.00016438,2]
[351181319,1738399840633,-500.0,0.00016438,2]
[351181320,1738399840643,-563.10720974,0.00016438,2]
[351181321,1738399840652,-500.0,0.00016438,2]
[351181322,1738399840661,-500.0,0.00016438,2]
[351181323,1738399840670,-167.63134371,0.00016438,2]
[351181324,1738399840680,-500.0,0.00016438,2]
[351181325,1738399840694,-355.27326744,0.00016438,2]
[351181326,1738399840703,-509.21116118,0.00016438,2]
[351181327,1738399840713,-579.53237462,0.00016438,2]
[351181328,1738399840723,-500.0,0.00016438,2]
[351181329,1738399840734,-500.0,0.00016438,2]
[351181330,1738399840743,-500.0,0.00016438,2]
[351181331,1738399840753,-500.0,0.00016438,2]
[351181332,1738399840763,-500.0,0.00016438,2]
[351181333,1738399840773,-384.84938243,0.00016438,2]
[351181334,1738399840782,-500.0,0.00016438,2]
[351181335,1738399840792,-442.11037345,0.00016438,2]
[351181336,1738399840801,-500.0,0.00016438,2]
[351181337,1738399840811,-500.0,0.00016438,2]
[351181338,1738399840821,-500.0,0.00016438,2]
[351181339,1738399840830,-500.0,0.00016438,2]
[351181340,1738399840839,-515.34429113,0.00016438,2]
[351181341,1738399840849,-825.63,0.00016438,2]
[351181342,1738399840859,-329.74422028,0.00016438,2]
[351181343,1738399840868,-500.0,0.00016438,2]
[351181344,1738399840878,-500.0,0.00016438,2]
[351181345,1738399840888,-500.0,0.00016438,2]
[351181346,1738399840897,-236.64951652,0.00016438,2]
[351181347,1738399840906,-504.05734614,0.00016438,2]
[351181348,1738399840915,-500.0,0.00016438,2]
[351181349,1738399840924,-500.0,0.00016438,2]
[351181350,1738399840933,-598.4,0.00016438,2]
[351181351,1738399840942,-500.0,0.00016438,2]
[351181352,1738399840952,-500.0,0.00016438,2]
[351181353,1738399840961,-500.0,0.00016438,2]
[351181354,1738399840970,-500.0,0.00016438,2]
[351181355,1738399840979,-500.0,0.00016438,2]
[351181356,1738399840988,-500.0,0.00016438,2]
[351181357,1738399840997,-504.87581513,0.00016438,2]
[351181358,1738399841006,-500.0,0.00016438,2]
[351181359,1738399841016,-500.0,0.00016438,2]
[351181360,1738399841025,-726.45,0.00016438,2]
[351181361,1738399841034,-401.72112394,0.00016438,2]
[351181362,1738399841044,-500.0,0.00016438,2]
[351181363,1738399841053,-500.0,0.00016438,2]
[351181364,1738399841062,-200.0,0.00016438,2]
[351181365,1738399841071,-500.0,0.00016438,2]
[351181366,1738399841080,-1157.25,0.00016438,2]
[351181367,1738399841089,-500.0,0.00016438,2]
[351181368,1738399841098,-500.0,0.00016438,2]
[351181369,1738399841109,-500.0,0.00016438,2]
[351181370,1738399841118,-450.302109,0.00016438,2]
[351181371,1738399841127,-500.0,0.00016438,2]
[351181372,1738399841136,-500.0,0.00016438,2]
[351181373,1738399841147,-500.0,0.00016438,2]
[351181374,1738399841163,-500.0,0.00016438,2]
[351181375,1738399841173,-500.0,0.00016438,2]
[351181376,1738399841183,-500.0,0.00016438,2]
[351181377,1738399841193,-500.0,0.00016438,2]
[351181378,1738399841203,-500.0,0.00016438,2]
[351181379,1738399841213,-164.771164,0.00016438,2]
[351181380,1738399841223,-500.0,0.00016438,2]
[351181381,1738399841231,-623.01,0.00016438,2]
[351181382,1738399841240,-500.0,0.00016438,2]
[351181383,1738399841250,-153.537193,0.00016438,2]
[351181384,1738399841259,-1237.86,0.00016438,2]
[351181385,1738399841269,-500.0,0.00016438,2]
[351181386,1738399841278,-319.5085943,0.00016438,2]
[351181387,1738399841287,-578.33939944,0.00016438,2]
[351181388,1738399841296,-794.39,0.00016438,2]
[351181389,1738399841305,-500.0,0.00016438,2]
[351181390,1738399841316,-500.0,0.00016438,2]
[351181391,1738399841325,-500.0,0.00016438,2]
[351181392,1738399841334,-556.83,0.00016438,2]
[351181393,1738399841343,-500.0,0.00016438,2]
[351181394,1738399841353,-500.0,0.00016438,2]
[351181395,1738399841362,-900.16,0.00016438,2]
[351181396,1738399841371,-1144.92,0.00016438,2]
[351181397,1738399841381,-500.0,0.00016438,2]
[351181398,1738399841390,-445.813525,0.00016438,2]
[351181399,1738399841401,-500.0,0.00016438,2]
[351181400,1738399841410,-1330.79,0.00016438,2]
[351181401,1738399841419,-873.52,0.00016438,2]
[351181402,1738399841429,-500.0,0.00016438,2]
[351181403,1738399841438,-1097.36,0.00016438,2]
[351181404,1738399841447,-500.0,0.00016438,2]
[351181405,1738399841457,-911.22,0.00016438,2]
[351181406,1738399841466,-796.08,0.00016438,2]
[351181407,1738399841476,-500.0,0.00016438,2]
[351181408,1738399841485,-500.0,0.00016438,2]
[351181409,1738399841495,-500.0,0.00016438,2]
[351181410,1738399841505,-219.94432217,0.00016438,2]
[351181411,1738399841514,-500.0,0.00016438,2]
[351181412,1738399841524,-2074.04,0.00016438,2]
[351181413,1738399841533,-667.67,0.00016438,2]
[351181414,1738399841543,-500.0,0.00016438,2]
[351181415,1738399841552,-500.0,0.00016438,2]
[351181416,1738399841562,-1244.07,0.00016438,2]
[351181417,1738399841571,-500.0,0.00016438,2]
[351181418,1738399841580,-2707.78,0.00016438,2]
[351181419,1738399841590,-796.81,0.00016438,2]
[351181420,1738399841599,-1529.22,0.00016438,2]
[351181421,1738399841608,-500.0,0.00016438,2]
[351181422,1738399841618,-529.7934492,0.00016438,2]
[351181423,1738399841626,-500.0,0.00016438,2]
[351181424,1738399841636,-193.0010318,0.00016438,2]
[351181425,1738399841645,-917.48,0.00016438,2]
[351181426,1738399841654,-500.0,0.00016438,2]
[351181427,1738399841663,-1471.11,0.00016438,2]
[351181428,1738399841673,-500.0,0.00016438,2]
[351181429,1738399841683,-1512.35,0.00016438,2]
[351181430,1738399841694,-500.0,0.00016438,2]
[351181431,1738399841704,-500.0,0.00016438,2]
[351181432,1738399841713,-818.52,0.00016438,2]
[351181433,1738399841724,-2864.2,0.00016438,2]
[351181434,1738399841734,-1217.27,0.00016438,2]
[351181435,1738399841743,-961.91,0.00016438,2]
[351181436,1738399841752,-1419.87,0.00016438,2]
[351181437,1738399841762,-500.0,0.00016438,2]
[351181438,1738399841771,-500.0,0.00016438,2]
[351181439,1738399841781,-580.81,0.00016438,2]
[351181440,1738399841790,-500.0,0.00016438,2]
[351181441,1738399841943,-500.0,0.00016438,2]
[351181442,1738399841953,-500.0,0.00016438,2]
[351181443,1738399841962,-500.0,0.00016438,2]
[351181444,1738399841972,-500.0,0.00016438,2]
[351181445,1738399841981,-500.0,0.00016438,2]
[351181446,1738399841991,-902.94,0.00016438,2]
[351181447,1738399842000,-153.53727036,0.00016438,2]
[351181448,1738399842010,-541.06079609,0.00016438,2]
[351181449,1738399842019,-500.0,0.00016438,2]
[351181450,1738399842028,-500.0,0.00016438,2]
[351181451,1738399842037,-1453.2,0.00016438,2]
[351181452,1738399842046,-500.0,0.00016438,2]
[351181454,1738399842055,-500.0,0.00016438,2]
[351181455,1738399842066,-798.92,0.00016438,2]
[351181456,1738399842076,-2365.3,0.00016438,2]
[351181457,1738399842085,-500.0,0.00016438,2]
[351181458,1738399842094,-500.0,0.00016438,2]
[351181459,1738399842103,-779.0,0.00016438,2]
[351181460,1738399842113,-633.18,0.00016438,2]
[351181461,1738399842122,-507.66,0.00016438,2]
[351181462,1738399842131,-500.0,0.00016438,2]
[351181463,1738399842141,-1043.13,0.00016438,2]
[351181464,1738399842150,-500.0,0.00016438,2]
[351181465,1738399842159,-500.0,0.00016438,2]
[351181466,1738399842169,-500.0,0.00016438,2]
[351181467,1738399842178,-609.44664529,0.00016438,2]
[351181468,1738399842187,-500.0,0.00016438,2]
[351181469,1738399842197,-1567.89,0.00016438,2]
[351181470,1738399842206,-910.38,0.00016438,2]
[351181471,1738399842215,-500.0,0.00016438,2]